[Event "Titled Tuesday Blitz January 31 Early 2023"]
[White "Lopez Idarraga, Daniel Eduardo"]
[Black "Bosnjak, Petar"]
[WhiteFideId "4405501"]
[BlackFideId "14532581"]
[WhiteElo "2009"]
[BlackElo "2337"]
[Result "0-1"]
[Round "03"]
[TimeControl "180+2"]
[Date "2023.01.31"]
[WhiteClock "0:01:41"]
[BlackClock "0:01:43"]

1. Nf3 {[%clk 0:03:00]}  c6 {[%clk 0:03:00]} 2. b3 {[%clk 0:02:57]}  d5 {[%clk 0:03:01]} 3. Bb2 {[%clk 0:02:57]}  Nf6 {[%clk 0:03:02]} 4. g3 {[%clk 0:02:56]}  Bg4 {[%clk 0:03:02]} 5. Bg2 {[%clk 0:02:57]}  e6 {[%clk 0:03:03]} 6. O-O {[%clk 0:02:58]}  Be7 {[%clk 0:03:03]} 7. d3 {[%clk 0:02:58]}  O-O {[%clk 0:03:03]} 8. Nbd2 {[%clk 0:02:59]}  a5 {[%clk 0:03:04]} 9. Qe1 {[%clk 0:02:59]}  a4 {[%clk 0:03:04]} 10. e4 {[%clk 0:03:00]}  Nfd7 {[%clk 0:03:02]} 11. c4 {[%clk 0:02:54]}  Nc5 {[%clk 0:02:58]} 12. Qe2 {[%clk 0:02:53]}  dxe4 {[%clk 0:02:57]} 13. dxe4 {[%clk 0:02:51]}  Qd3 {[%clk 0:02:55]} 14. Qxd3 {[%clk 0:02:46]}  Nxd3 {[%clk 0:02:56]} 15. Bc3 {[%clk 0:02:47]}  Na6 {[%clk 0:02:46]} 16. Ne5 {[%clk 0:02:25]}  Nxe5 {[%clk 0:02:40]} 17. Bxe5 {[%clk 0:02:26]}  axb3 {[%clk 0:02:36]} 18. axb3 {[%clk 0:02:25]}  Nb4 {[%clk 0:02:34]} 19. h3 {[%clk 0:02:18]}  Bh5 {[%clk 0:02:34]} 20. g4 {[%clk 0:02:17]}  Bg6 {[%clk 0:02:34]} 21. f4 {[%clk 0:02:16]}  Bc5+ {[%clk 0:02:30]} 22. Kh2 {[%clk 0:02:15]}  f6 {[%clk 0:02:30]} 23. Bc3 {[%clk 0:02:13]}  Rfd8 {[%clk 0:02:24]} 24. f5 {[%clk 0:01:58]}  Bf7 {[%clk 0:02:20]} 25. Rxa8 {[%clk 0:01:48]}  Rxa8 {[%clk 0:02:19]} 26. Ra1 {[%clk 0:01:49]}  Rd8 {[%clk 0:02:11]} 27. Kg3 {[%clk 0:01:44]}  h5 {[%clk 0:02:05]} 28. Kf3 {[%clk 0:01:41]}  Rd3+ {[%clk 0:01:43]} 0-1


[Site "https://www.chess.com"]

[Event "Titled Tuesday Blitz January 31 Early 2023"]
[White "Rosenberg, Evan S"]
[Black "Orlov, Georgi"]
[WhiteFideId "2019299"]
[BlackFideId "2011271"]
[WhiteElo "1956"]
[BlackElo "2453"]
[Result "0-1"]
[Round "03"]
[TimeControl "180+2"]
[Date "2023.01.31"]
[WhiteClock "0:00:02"]
[BlackClock "0:01:01"]

1. d4 {[%clk 0:03:00]}  Nf6 {[%clk 0:02:58]} 2. Nf3 {[%clk 0:03:00]}  e6 {[%clk 0:02:58]} 3. g3 {[%clk 0:03:00]}  b5 {[%clk 0:02:57]} 4. Bg2 {[%clk 0:03:00]}  Bb7 {[%clk 0:02:57]} 5. O-O {[%clk 0:03:00]}  c5 {[%clk 0:02:57]} 6. Na3 {[%clk 0:02:59]}  Qb6 {[%clk 0:02:57]} 7. dxc5 {[%clk 0:02:58]}  Bxc5 {[%clk 0:02:55]} 8. b4 {[%clk 0:02:58]}  Bxb4 {[%clk 0:02:53]} 9. Rb1 {[%clk 0:02:59]}  Nc6 {[%clk 0:02:45]} 10. c3 {[%clk 0:02:44]}  Bxa3 {[%clk 0:02:44]} 11. Bxa3 {[%clk 0:02:44]}  d5 {[%clk 0:02:42]} 12. Nd4 {[%clk 0:02:30]}  a6 {[%clk 0:02:39]} 13. Nb3 {[%clk 0:02:16]}  Ne5 {[%clk 0:02:31]} 14. Bc5 {[%clk 0:02:13]}  Qc7 {[%clk 0:02:28]} 15. Qd4 {[%clk 0:02:08]}  Ned7 {[%clk 0:02:18]} 16. Bb4 {[%clk 0:02:04]}  a5 {[%clk 0:02:08]} 17. Ba3 {[%clk 0:01:54]}  Qc4 {[%clk 0:02:06]} 18. Qxc4 {[%clk 0:01:41]}  bxc4 {[%clk 0:02:05]} 19. Nd4 {[%clk 0:01:30]}  Ba6 {[%clk 0:02:04]} 20. Nc6 {[%clk 0:01:05]}  Bc8 {[%clk 0:01:48]} 21. Rfd1 {[%clk 0:00:56]}  Ra6 {[%clk 0:01:46]} 22. Nb8 {[%clk 0:00:50]}  Nxb8 {[%clk 0:01:45]} 23. Rxb8 {[%clk 0:00:50]}  Kd7 {[%clk 0:01:45]} 24. e4 {[%clk 0:00:44]}  Kc7 {[%clk 0:01:45]} 25. Rb5 {[%clk 0:00:40]}  Bb7 {[%clk 0:01:34]} 26. e5 {[%clk 0:00:30]}  Bc6 {[%clk 0:01:26]} 27. Bd6+ {[%clk 0:00:27]}  Kd7 {[%clk 0:01:24]} 28. Rb2 {[%clk 0:00:17]}  Ne8 {[%clk 0:01:21]} 29. Rb8 {[%clk 0:00:14]}  Ra8 {[%clk 0:01:18]} 30. Rxa8 {[%clk 0:00:13]}  Bxa8 {[%clk 0:01:18]} 31. Bc5 {[%clk 0:00:12]}  Nc7 {[%clk 0:01:16]} 32. Rb1 {[%clk 0:00:11]}  Bc6 {[%clk 0:01:16]} 33. Rb6 {[%clk 0:00:10]}  Ra8 {[%clk 0:01:14]} 34. Bd6 {[%clk 0:00:10]}  Nb5 {[%clk 0:01:11]} 35. f4 {[%clk 0:00:06]}  Nxd6 {[%clk 0:01:09]} 36. exd6 {[%clk 0:00:07]}  Kxd6 {[%clk 0:01:09]} 37. f5 {[%clk 0:00:07]}  Kc5 {[%clk 0:01:08]} 38. Rb2 {[%clk 0:00:06]}  exf5 {[%clk 0:01:07]} 39. Re2 {[%clk 0:00:05]}  Re8 {[%clk 0:01:06]} 40. Rf2 {[%clk 0:00:04]}  Re1+ {[%clk 0:01:05]} 41. Bf1 {[%clk 0:00:05]}  g6 {[%clk 0:01:05]} 42. g4 {[%clk 0:00:05]}  Bd7 {[%clk 0:01:03]} 43. Kg2 {[%clk 0:00:04]}  Re3 {[%clk 0:01:01]} 44. gxf5 {[%clk 0:00:03]}  Bxf5 {[%clk 0:01:01]} 45. Rf3 {[%clk 0:00:02]}  Be4 {[%clk 0:01:01]} 0-1


[Site "https://www.chess.com"]

[Event "Titled Tuesday Blitz January 31 Early 2023"]
[White "Girya, Olga"]
[Black "Prieto Aranguren, Alain"]
[WhiteFideId "4195752"]
[BlackFideId "2268906"]
[WhiteElo "2402"]
[BlackElo "2258"]
[Result "0-1"]
[Round "03"]
[TimeControl "180+2"]
[Date "2023.01.31"]
[WhiteClock "0:00:04"]
[BlackClock "0:01:17"]

1. d4 {[%clk 0:03:00]}  Nf6 {[%clk 0:02:58]} 2. Nf3 {[%clk 0:03:00]}  g6 {[%clk 0:02:58]} 3. Bg5 {[%clk 0:02:57]}  Bg7 {[%clk 0:02:58]} 4. Nbd2 {[%clk 0:02:56]}  O-O {[%clk 0:02:57]} 5. c3 {[%clk 0:02:56]}  c6 {[%clk 0:02:57]} 6. e4 {[%clk 0:02:56]}  d5 {[%clk 0:02:56]} 7. Bxf6 {[%clk 0:02:52]}  exf6 {[%clk 0:02:54]} 8. exd5 {[%clk 0:02:52]}  Qxd5 {[%clk 0:02:51]} 9. Be2 {[%clk 0:02:52]}  f5 {[%clk 0:02:50]} 10. O-O {[%clk 0:02:52]}  Qd8 {[%clk 0:02:49]} 11. Re1 {[%clk 0:02:51]}  Nd7 {[%clk 0:02:49]} 12. Nc4 {[%clk 0:02:51]}  Nf6 {[%clk 0:02:48]} 13. Nce5 {[%clk 0:02:46]}  Be6 {[%clk 0:02:45]} 14. Bc4 {[%clk 0:02:43]}  Bxc4 {[%clk 0:02:43]} 15. Nxc4 {[%clk 0:02:43]}  Ne4 {[%clk 0:02:42]} 16. Nce5 {[%clk 0:02:39]}  Qd5 {[%clk 0:02:40]} 17. Qb3 {[%clk 0:02:32]}  Rfd8 {[%clk 0:02:37]} 18. Qxd5 {[%clk 0:02:27]}  Rxd5 {[%clk 0:02:33]} 19. Nd3 {[%clk 0:02:20]}  a5 {[%clk 0:02:29]} 20. Nf4 {[%clk 0:02:19]}  Rd7 {[%clk 0:02:27]} 21. a4 {[%clk 0:02:18]}  Rad8 {[%clk 0:02:24]} 22. h4 {[%clk 0:02:11]}  Bf6 {[%clk 0:02:23]} 23. Re2 {[%clk 0:02:08]}  Kg7 {[%clk 0:02:22]} 24. g3 {[%clk 0:02:07]}  c5 {[%clk 0:02:19]} 25. d5 {[%clk 0:02:05]}  c4 {[%clk 0:02:11]} 26. Rae1 {[%clk 0:01:57]}  Nc5 {[%clk 0:02:10]} 27. Rd2 {[%clk 0:01:34]}  Nxa4 {[%clk 0:02:06]} 28. Ra1 {[%clk 0:01:33]}  Nxb2 {[%clk 0:02:05]} 29. Rxb2 {[%clk 0:01:29]}  Bxc3 {[%clk 0:02:05]} 30. Rab1 {[%clk 0:01:23]}  Bxb2 {[%clk 0:02:05]} 31. Rxb2 {[%clk 0:01:24]}  Rc8 {[%clk 0:01:54]} 32. Nd4 {[%clk 0:00:38]}  c3 {[%clk 0:01:49]} 33. Rc2 {[%clk 0:00:38]}  Rb8 {[%clk 0:01:42]} 34. Rxc3 {[%clk 0:00:34]}  b5 {[%clk 0:01:41]} 35. Rc5 {[%clk 0:00:25]}  Rdb7 {[%clk 0:01:35]} 36. d6 {[%clk 0:00:24]}  a4 {[%clk 0:01:32]} 37. Kg2 {[%clk 0:00:13]}  b4 {[%clk 0:01:31]} 38. Nd3 {[%clk 0:00:04]}  b3 {[%clk 0:01:29]} 39. Ra5 {[%clk 0:00:04]}  b2 {[%clk 0:01:28]} 40. Nxb2 {[%clk 0:00:04]}  Rxb2 {[%clk 0:01:28]} 41. Rxa4 {[%clk 0:00:04]}  Rd2 {[%clk 0:01:26]} 42. d7 {[%clk 0:00:03]}  Rd8 {[%clk 0:01:19]} 43. Nf3 {[%clk 0:00:03]}  R2xd7 {[%clk 0:01:19]} 44. Ra6 {[%clk 0:00:04]}  Rd6 {[%clk 0:01:18]} 45. Ra7 {[%clk 0:00:04]}  R8d7 {[%clk 0:01:18]} 46. Ra8 {[%clk 0:00:04]}  Rc6 {[%clk 0:01:18]} 47. Rb8 {[%clk 0:00:04]}  Rdc7 {[%clk 0:01:18]} 48. Ra8 {[%clk 0:00:04]}  Rb6 {[%clk 0:01:18]} 49. Rd8 {[%clk 0:00:04]}  Rb2 {[%clk 0:01:17]} 0-1


[Site "https://www.chess.com"]

[Event "Titled Tuesday Blitz January 31 Early 2023"]
[White "Manukyan, Artyom"]
[Black "Levitan, Caleb Levi"]
[WhiteFideId "13305786"]
[BlackFideId "14332620"]
[WhiteElo "2110"]
[BlackElo "2129"]
[Result "1-0"]
[Round "03"]
[TimeControl "180+2"]
[Date "2023.01.31"]
[WhiteClock "0:00:09"]
[BlackClock "0:00:02"]

1. e4 {[%clk 0:02:48]}  c5 {[%clk 0:02:58]} 2. Nc3 {[%clk 0:02:38]}  e6 {[%clk 0:02:55]} 3. g3 {[%clk 0:02:38]}  d5 {[%clk 0:02:53]} 4. exd5 {[%clk 0:02:38]}  exd5 {[%clk 0:02:53]} 5. Bg2 {[%clk 0:02:38]}  d4 {[%clk 0:02:50]} 6. Nce2 {[%clk 0:02:39]}  Nf6 {[%clk 0:02:50]} 7. d3 {[%clk 0:02:39]}  Be7 {[%clk 0:02:46]} 8. Nf3 {[%clk 0:02:39]}  O-O {[%clk 0:02:46]} 9. O-O {[%clk 0:02:40]}  Nc6 {[%clk 0:02:46]} 10. Re1 {[%clk 0:02:36]}  Bg4 {[%clk 0:02:43]} 11. h3 {[%clk 0:02:32]}  Bf5 {[%clk 0:02:34]} 12. Nf4 {[%clk 0:02:32]}  Re8 {[%clk 0:02:17]} 13. Ne5 {[%clk 0:02:27]}  Nxe5 {[%clk 0:02:06]} 14. Rxe5 {[%clk 0:02:28]}  Qd7 {[%clk 0:01:57]} 15. g4 {[%clk 0:02:24]}  Bg6 {[%clk 0:01:56]} 16. g5 {[%clk 0:02:14]}  Bd6 {[%clk 0:01:55]} 17. Rxe8+ {[%clk 0:01:51]}  Nxe8 {[%clk 0:01:53]} 18. Qf3 {[%clk 0:01:50]}  Rb8 {[%clk 0:01:16]} 19. Bd2 {[%clk 0:01:48]}  Nc7 {[%clk 0:01:15]} 20. Re1 {[%clk 0:01:44]}  b6 {[%clk 0:00:59]} 21. h4 {[%clk 0:01:27]}  Bf5 {[%clk 0:00:28]} 22. b3 {[%clk 0:01:00]}  Re8 {[%clk 0:00:20]} 23. Rxe8+ {[%clk 0:00:50]}  Qxe8 {[%clk 0:00:20]} 24. Qb7 {[%clk 0:00:45]}  Bc8 {[%clk 0:00:09]} 25. Qxa7 {[%clk 0:00:38]}  Ne6 {[%clk 0:00:04]} 26. Nxe6 {[%clk 0:00:37]}  Qxe6 {[%clk 0:00:04]} 27. Qa8 {[%clk 0:00:30]}  h6 {[%clk 0:00:02]} 28. Bb7 {[%clk 0:00:12]}  Qg4+ {[%clk 0:00:02]} 29. Kf1 {[%clk 0:00:10]}  Qh3+ {[%clk 0:00:02]} 30. Ke2 {[%clk 0:00:09]}  Qg4+ {[%clk 0:00:02]} 31. Bf3 {[%clk 0:00:08]}  Qe6+ {[%clk 0:00:02]} 32. Qe4 {[%clk 0:00:09]} 1-0


[Site "https://www.chess.com"]

[Event "Titled Tuesday Blitz January 31 Early 2023"]
[White "Hoffmann, Asa"]
[Black "Vestby-Ellingsen, Mads"]
[WhiteFideId "2001470"]
[BlackFideId "1520857"]
[WhiteElo "2185"]
[BlackElo "2387"]
[Result "1-0"]
[Round "03"]
[TimeControl "180+2"]
[Date "2023.01.31"]
[WhiteClock "0:00:24"]
[BlackClock "0:00:08"]

1. d4 {[%clk 0:02:56]}  Nf6 {[%clk 0:02:59]} 2. Bg5 {[%clk 0:02:55]}  Ne4 {[%clk 0:02:55]} 3. Bf4 {[%clk 0:02:55]}  d5 {[%clk 0:02:51]} 4. f3 {[%clk 0:02:55]}  Nf6 {[%clk 0:02:50]} 5. e4 {[%clk 0:02:54]}  dxe4 {[%clk 0:02:50]} 6. Nc3 {[%clk 0:02:54]}  exf3 {[%clk 0:02:50]} 7. Nxf3 {[%clk 0:02:53]}  c6 {[%clk 0:02:48]} 8. Bc4 {[%clk 0:02:53]}  Bf5 {[%clk 0:02:48]} 9. Ne5 {[%clk 0:02:51]}  e6 {[%clk 0:02:48]} 10. g4 {[%clk 0:02:51]}  Be4 {[%clk 0:02:46]} 11. O-O {[%clk 0:02:44]}  Bd5 {[%clk 0:02:46]} 12. Bd3 {[%clk 0:02:41]}  h6 {[%clk 0:02:42]} 13. Qe2 {[%clk 0:02:33]}  Nbd7 {[%clk 0:02:41]} 14. Rad1 {[%clk 0:02:27]}  Be7 {[%clk 0:02:39]} 15. Ne4 {[%clk 0:02:19]}  Bxe4 {[%clk 0:02:35]} 16. Bxe4 {[%clk 0:02:18]}  Nxe4 {[%clk 0:02:35]} 17. Qxe4 {[%clk 0:02:18]}  Nf6 {[%clk 0:02:34]} 18. Qf3 {[%clk 0:02:15]}  Qd5 {[%clk 0:02:33]} 19. Qe2 {[%clk 0:02:05]}  Qe4 {[%clk 0:02:15]} 20. Qf2 {[%clk 0:01:59]}  Rf8 {[%clk 0:01:54]} 21. Rfe1 {[%clk 0:01:56]}  Qh7 {[%clk 0:01:48]} 22. c4 {[%clk 0:01:54]}  g5 {[%clk 0:01:44]} 23. Bg3 {[%clk 0:01:53]}  Ne4 {[%clk 0:01:37]} 24. Qc2 {[%clk 0:01:48]}  f5 {[%clk 0:01:38]} 25. gxf5 {[%clk 0:01:37]}  exf5 {[%clk 0:01:39]} 26. d5 {[%clk 0:01:32]}  Bc5+ {[%clk 0:01:10]} 27. Kg2 {[%clk 0:01:30]}  Rf6 {[%clk 0:01:00]} 28. dxc6 {[%clk 0:01:21]}  bxc6 {[%clk 0:00:58]} 29. Nd7 {[%clk 0:01:21]}  Re6 {[%clk 0:00:47]} 30. Rxe4 {[%clk 0:01:16]}  Rxe4 {[%clk 0:00:47]} 31. Nf6+ {[%clk 0:01:15]}  Kf7 {[%clk 0:00:45]} 32. Nxh7 {[%clk 0:01:15]}  Rae8 {[%clk 0:00:44]} 33. Rd2 {[%clk 0:01:07]}  Bb4 {[%clk 0:00:30]} 34. Rf2 {[%clk 0:01:05]}  Kg6 {[%clk 0:00:30]} 35. Qa4 {[%clk 0:01:00]}  Be1 {[%clk 0:00:23]} 36. Qxc6+ {[%clk 0:00:54]}  Kxh7 {[%clk 0:00:22]} 37. Rxf5 {[%clk 0:00:50]}  Re2+ {[%clk 0:00:21]} 38. Kh3 {[%clk 0:00:48]}  R2e7 {[%clk 0:00:20]} 39. Rf6 {[%clk 0:00:45]}  g4+ {[%clk 0:00:13]} 40. Kh4 {[%clk 0:00:41]}  Bd2 {[%clk 0:00:13]} 41. Kh5 {[%clk 0:00:31]}  Rg8 {[%clk 0:00:09]} 42. Rxh6+ {[%clk 0:00:27]}  Kg7 {[%clk 0:00:08]} 43. Qf6# {[%clk 0:00:24]} 1-0


[Site "https://www.chess.com"]

[Event "Titled Tuesday Blitz January 31 Early 2023"]
[White "Tomaszewski, Kacper"]
[Black "Miranda Jr, Roberto Calheiros de"]
[WhiteFideId "1127373"]
[BlackFideId "2109417"]
[WhiteElo "2313"]
[BlackElo "2182"]
[Result "1-0"]
[Round "03"]
[TimeControl "180+2"]
[Date "2023.01.31"]
[WhiteClock "0:00:23"]
[BlackClock "0:00:38"]

1. e4 {[%clk 0:03:00]}  c5 {[%clk 0:02:56]} 2. Nf3 {[%clk 0:02:59]}  Nc6 {[%clk 0:02:56]} 3. Bb5 {[%clk 0:02:57]}  Nd4 {[%clk 0:02:54]} 4. Nxd4 {[%clk 0:02:54]}  cxd4 {[%clk 0:02:53]} 5. O-O {[%clk 0:02:55]}  e6 {[%clk 0:02:44]} 6. Re1 {[%clk 0:02:54]}  Bc5 {[%clk 0:02:41]} 7. Bf1 {[%clk 0:02:49]}  Ne7 {[%clk 0:02:38]} 8. d3 {[%clk 0:02:49]}  O-O {[%clk 0:02:19]} 9. Nd2 {[%clk 0:02:47]}  a6 {[%clk 0:02:18]} 10. f4 {[%clk 0:02:43]}  f5 {[%clk 0:02:15]} 11. e5 {[%clk 0:02:35]}  Nd5 {[%clk 0:02:13]} 12. Nf3 {[%clk 0:02:25]}  b5 {[%clk 0:02:09]} 13. Kh1 {[%clk 0:02:22]}  Bb7 {[%clk 0:01:58]} 14. Be2 {[%clk 0:02:19]}  Rc8 {[%clk 0:01:54]} 15. Bd2 {[%clk 0:02:16]}  Qb6 {[%clk 0:01:48]} 16. Qc1 {[%clk 0:02:03]}  b4 {[%clk 0:01:46]} 17. b3 {[%clk 0:01:56]}  Rc7 {[%clk 0:01:40]} 18. Qb2 {[%clk 0:01:54]}  Rfc8 {[%clk 0:01:38]} 19. Rec1 {[%clk 0:01:53]}  Nc3 {[%clk 0:01:37]} 20. Bxc3 {[%clk 0:01:45]}  dxc3 {[%clk 0:01:38]} 21. Qb1 {[%clk 0:01:45]}  Be3 {[%clk 0:01:38]} 22. Rf1 {[%clk 0:01:44]}  Bxf4 {[%clk 0:01:38]} 23. d4 {[%clk 0:01:38]}  Be4 {[%clk 0:01:35]} 24. Qd1 {[%clk 0:01:35]}  Be3 {[%clk 0:01:32]} 25. Bd3 {[%clk 0:01:27]}  Bxf3 {[%clk 0:01:23]} 26. Qxf3 {[%clk 0:01:28]}  Bxd4 {[%clk 0:01:20]} 27. g4 {[%clk 0:01:28]}  Qc6 {[%clk 0:01:10]} 28. gxf5 {[%clk 0:01:27]}  Qxf3+ {[%clk 0:01:09]} 29. Rxf3 {[%clk 0:01:28]}  Bxe5 {[%clk 0:01:08]} 30. Re1 {[%clk 0:01:25]}  Rc5 {[%clk 0:01:06]} 31. fxe6 {[%clk 0:01:21]}  dxe6 {[%clk 0:01:06]} 32. Rfe3 {[%clk 0:01:20]}  Bf4 {[%clk 0:00:55]} 33. Rxe6 {[%clk 0:01:19]}  h6 {[%clk 0:00:53]} 34. Bg6 {[%clk 0:01:13]}  Rf8 {[%clk 0:00:51]} 35. Rxa6 {[%clk 0:00:53]}  Bd2 {[%clk 0:00:45]} 36. Rg1 {[%clk 0:00:33]}  Rg5 {[%clk 0:00:44]} 37. Rxg5 {[%clk 0:00:32]}  Bxg5 {[%clk 0:00:42]} 38. Rb6 {[%clk 0:00:29]}  Rf6 {[%clk 0:00:38]} 39. Rb8+ {[%clk 0:00:27]}  Rf8 {[%clk 0:00:38]} 40. Rxb4 {[%clk 0:00:23]} 1-0


[Site "https://www.chess.com"]

[Event "Titled Tuesday Blitz January 31 Early 2023"]
[White "Wilson, Elvin"]
[Black "Malka, Samuel"]
[WhiteFideId "2014874"]
[BlackFideId "20643675"]
[WhiteElo "2183"]
[BlackElo "2165"]
[Result "0-1"]
[Round "03"]
[TimeControl "180+2"]
[Date "2023.01.31"]
[WhiteClock "0:00:02"]
[BlackClock "0:00:16"]

1. c4 {[%clk 0:03:00]}  g6 {[%clk 0:02:59]} 2. g3 {[%clk 0:02:59]}  Bg7 {[%clk 0:02:57]} 3. Bg2 {[%clk 0:02:58]}  c5 {[%clk 0:02:57]} 4. Nc3 {[%clk 0:02:58]}  Nc6 {[%clk 0:02:57]} 5. e4 {[%clk 0:02:58]}  d6 {[%clk 0:02:53]} 6. Nge2 {[%clk 0:02:57]}  Nf6 {[%clk 0:02:43]} 7. O-O {[%clk 0:02:55]}  O-O {[%clk 0:02:38]} 8. d3 {[%clk 0:02:53]}  Ne8 {[%clk 0:02:36]} 9. Be3 {[%clk 0:02:45]}  Nd4 {[%clk 0:02:35]} 10. Rb1 {[%clk 0:02:44]}  a5 {[%clk 0:02:34]} 11. Nb5 {[%clk 0:01:59]}  e5 {[%clk 0:02:20]} 12. Nexd4 {[%clk 0:01:43]}  cxd4 {[%clk 0:02:16]} 13. Bd2 {[%clk 0:01:42]}  Nc7 {[%clk 0:02:12]} 14. Nxc7 {[%clk 0:01:30]}  Qxc7 {[%clk 0:02:12]} 15. f4 {[%clk 0:01:30]}  f5 {[%clk 0:02:08]} 16. exf5 {[%clk 0:01:18]}  Bxf5 {[%clk 0:02:06]} 17. Qf3 {[%clk 0:01:05]}  Rab8 {[%clk 0:02:02]} 18. Qd5+ {[%clk 0:01:00]}  Kh8 {[%clk 0:02:01]} 19. fxe5 {[%clk 0:00:51]}  dxe5 {[%clk 0:01:40]} 20. Bxa5 {[%clk 0:00:49]}  b6 {[%clk 0:01:40]} 21. Bb4 {[%clk 0:00:46]}  Rfd8 {[%clk 0:01:13]} 22. Qf3 {[%clk 0:00:41]}  b5 {[%clk 0:01:06]} 23. Rbc1 {[%clk 0:00:33]}  bxc4 {[%clk 0:01:03]} 24. Rxc4 {[%clk 0:00:32]}  Qd7 {[%clk 0:01:01]} 25. Rfc1 {[%clk 0:00:27]}  Qb5 {[%clk 0:00:54]} 26. a3 {[%clk 0:00:24]}  Bh6 {[%clk 0:00:49]} 27. R1c2 {[%clk 0:00:18]}  Be3+ {[%clk 0:00:48]} 28. Kh1 {[%clk 0:00:17]}  Qb6 {[%clk 0:00:34]} 29. Qe2 {[%clk 0:00:12]}  Qe6 {[%clk 0:00:31]} 30. Be4 {[%clk 0:00:09]}  Bxe4+ {[%clk 0:00:30]} 31. dxe4 {[%clk 0:00:07]}  d3 {[%clk 0:00:28]} 32. Qxe3 {[%clk 0:00:06]}  dxc2 {[%clk 0:00:29]} 33. Rxc2 {[%clk 0:00:06]}  Rbc8 {[%clk 0:00:29]} 34. Bc3 {[%clk 0:00:04]}  Rd1+ {[%clk 0:00:23]} 35. Kg2 {[%clk 0:00:02]}  Rf8 {[%clk 0:00:18]} 36. Rd2 {[%clk 0:00:01]}  Rxd2+ {[%clk 0:00:18]} 37. Qxd2 {[%clk 0:00:02]}  Re8 {[%clk 0:00:16]} 0-1


[Site "https://www.chess.com"]

[Event "Titled Tuesday Blitz January 31 Early 2023"]
[White "Player, Edmund C"]
[Black "Przybylski, Wojciech"]
[WhiteFideId "406520"]
[BlackFideId "1117599"]
[WhiteElo "2204"]
[BlackElo "2321"]
[Result "0-1"]
[Round "03"]
[TimeControl "180+2"]
[Date "2023.01.31"]
[WhiteClock "0:00:22"]
[BlackClock "0:01:12"]

1. e4 {[%clk 0:02:53]}  c5 {[%clk 0:02:59]} 2. Nf3 {[%clk 0:02:53]}  e6 {[%clk 0:02:59]} 3. d4 {[%clk 0:02:47]}  cxd4 {[%clk 0:02:59]} 4. Nxd4 {[%clk 0:02:48]}  Nc6 {[%clk 0:03:00]} 5. Nc3 {[%clk 0:02:47]}  Qc7 {[%clk 0:03:00]} 6. g3 {[%clk 0:02:34]}  a6 {[%clk 0:02:59]} 7. Bg2 {[%clk 0:02:34]}  Nf6 {[%clk 0:02:59]} 8. O-O {[%clk 0:02:27]}  Nxd4 {[%clk 0:02:52]} 9. Qxd4 {[%clk 0:02:26]}  Bc5 {[%clk 0:02:52]} 10. Qd3 {[%clk 0:02:23]}  O-O {[%clk 0:02:50]} 11. Na4 {[%clk 0:01:59]}  Ba7 {[%clk 0:02:45]} 12. b3 {[%clk 0:01:56]}  e5 {[%clk 0:02:37]} 13. Ba3 {[%clk 0:01:54]}  Re8 {[%clk 0:02:36]} 14. Bd6 {[%clk 0:01:45]}  Qc6 {[%clk 0:02:35]} 15. c4 {[%clk 0:01:19]}  Bd4 {[%clk 0:02:30]} 16. Rac1 {[%clk 0:01:14]}  Qxd6 {[%clk 0:02:29]} 17. c5 {[%clk 0:01:11]}  Qe6 {[%clk 0:02:15]} 18. Kh1 {[%clk 0:01:10]}  d6 {[%clk 0:02:07]} 19. f4 {[%clk 0:01:06]}  dxc5 {[%clk 0:02:04]} 20. f5 {[%clk 0:01:00]}  Qd6 {[%clk 0:02:02]} 21. Bf3 {[%clk 0:00:55]}  b5 {[%clk 0:01:58]} 22. Nc3 {[%clk 0:00:54]}  Bb7 {[%clk 0:01:56]} 23. g4 {[%clk 0:00:52]}  c4 {[%clk 0:01:55]} 24. bxc4 {[%clk 0:00:51]}  bxc4 {[%clk 0:01:56]} 25. Qxc4 {[%clk 0:00:50]}  Rac8 {[%clk 0:01:54]} 26. Qd3 {[%clk 0:00:50]}  h6 {[%clk 0:01:39]} 27. h4 {[%clk 0:00:49]}  Rxc3 {[%clk 0:01:32]} 28. Rxc3 {[%clk 0:00:48]}  Nxe4 {[%clk 0:01:32]} 29. Rb3 {[%clk 0:00:22]}  Ng3+ {[%clk 0:01:22]} 30. Kg2 {[%clk 0:00:22]}  Bxf3+ {[%clk 0:01:12]} 31. Rxf3 {[%clk 0:00:22]}  e4 {[%clk 0:01:12]} 0-1


[Site "https://www.chess.com"]

[Event "Titled Tuesday Blitz January 31 Early 2023"]
[White "Mkrtchian, Lilit"]
[Black "Pavlidou, Ekaterini"]
[WhiteFideId "13300601"]
[BlackFideId "4213262"]
[WhiteElo "2389"]
[BlackElo "2088"]
[Result "0-1"]
[Round "03"]
[TimeControl "180+2"]
[Date "2023.01.31"]
[WhiteClock "0:00:02"]
[BlackClock "0:00:23"]

1. Nf3 {[%clk 0:03:00]}  d5 {[%clk 0:02:58]} 2. g3 {[%clk 0:03:00]}  Nf6 {[%clk 0:02:58]} 3. Bg2 {[%clk 0:03:01]}  c6 {[%clk 0:02:58]} 4. O-O {[%clk 0:03:00]}  Bg4 {[%clk 0:02:59]} 5. h3 {[%clk 0:02:58]}  Bxf3 {[%clk 0:02:59]} 6. Bxf3 {[%clk 0:02:57]}  e5 {[%clk 0:03:00]} 7. d3 {[%clk 0:02:56]}  Nbd7 {[%clk 0:03:00]} 8. Bg2 {[%clk 0:02:56]}  Bd6 {[%clk 0:03:00]} 9. c4 {[%clk 0:02:51]}  O-O {[%clk 0:02:57]} 10. cxd5 {[%clk 0:02:36]}  cxd5 {[%clk 0:02:57]} 11. Nc3 {[%clk 0:02:37]}  d4 {[%clk 0:02:54]} 12. Nb5 {[%clk 0:02:34]}  Be7 {[%clk 0:02:49]} 13. a4 {[%clk 0:02:27]}  a6 {[%clk 0:02:46]} 14. Na3 {[%clk 0:02:27]}  Rb8 {[%clk 0:02:42]} 15. Nc4 {[%clk 0:02:25]}  b5 {[%clk 0:02:36]} 16. axb5 {[%clk 0:02:25]}  axb5 {[%clk 0:02:36]} 17. Na5 {[%clk 0:02:25]}  Qb6 {[%clk 0:02:19]} 18. Nc6 {[%clk 0:02:22]}  Rbe8 {[%clk 0:02:19]} 19. Nxe7+ {[%clk 0:02:09]}  Rxe7 {[%clk 0:02:18]} 20. Bd2 {[%clk 0:02:09]}  Qd6 {[%clk 0:02:11]} 21. Qb3 {[%clk 0:02:06]}  Nc5 {[%clk 0:02:07]} 22. Qxb5 {[%clk 0:01:58]}  Rb8 {[%clk 0:02:07]} 23. Ra8 {[%clk 0:01:32]}  Ree8 {[%clk 0:02:02]} 24. Rxb8 {[%clk 0:01:25]}  Rxb8 {[%clk 0:02:02]} 25. Qc4 {[%clk 0:00:39]}  Nb3 {[%clk 0:02:02]} 26. Bg5 {[%clk 0:00:28]}  Nd7 {[%clk 0:01:50]} 27. f4 {[%clk 0:00:16]}  Nd2 {[%clk 0:01:33]} 28. fxe5 {[%clk 0:00:14]}  Nxe5 {[%clk 0:01:33]} 29. Qc2 {[%clk 0:00:09]}  Nxf1 {[%clk 0:01:31]} 30. Bxf1 {[%clk 0:00:09]}  Ng6 {[%clk 0:01:21]} 31. Kh2 {[%clk 0:00:09]}  Qb6 {[%clk 0:01:10]} 32. Bc1 {[%clk 0:00:07]}  h5 {[%clk 0:01:08]} 33. h4 {[%clk 0:00:07]}  Qd6 {[%clk 0:01:04]} 34. Kg2 {[%clk 0:00:07]}  Qd5+ {[%clk 0:01:00]} 35. Kg1 {[%clk 0:00:07]}  Qe5 {[%clk 0:00:57]} 36. Kf2 {[%clk 0:00:06]}  Rb6 {[%clk 0:00:54]} 37. Bg2 {[%clk 0:00:05]}  Rf6+ {[%clk 0:00:53]} 38. Bf3 {[%clk 0:00:05]}  Qe6 {[%clk 0:00:43]} 39. Bg5 {[%clk 0:00:05]}  Rf5 {[%clk 0:00:39]} 40. Qc7 {[%clk 0:00:03]}  Re5 {[%clk 0:00:30]} 41. Qd8+ {[%clk 0:00:02]}  Qe8 {[%clk 0:00:29]} 42. Qxd4 {[%clk 0:00:02]}  Rb5 {[%clk 0:00:23]} 0-1


[Site "https://www.chess.com"]